Cogmind - Beta 12 X1 @@@ ROGUE MODE // 2022.09.03 @ 02:02:27 Player: albenzo Result: Destroyed by H-71 Marshal with Heavy Mass Driver Performance ------------- Evolutions (5) 2500 Regions Visited (19) 3800 Robots Destroyed (170) 850 Value Destroyed (7350) 7350 Prototype IDs (37) 740 Alien Tech Used (0) 0 Bonus (3408) 3408 TOTAL SCORE: 18648 Bonus ------- High Alert Combat Kills 1022 Follower Combat Kills 1381 Entered Garrisons 1000 Used RIF Installer 1000 Aligned with FarCom 300 Friendly Fire -1295 Cogmind --------- Core Integrity 0/1000 Matter 72/550 Energy 170/170 System Corruption 4% Temperature Cool (0) Movement Hovering (270) Ox5 Location -5/Factory Parts ------- > --- POWER (1) -------- Light Antimatter Reactor > --- PROPULSION (6) --- Gyrokinetic Inverter > --- UTILITY (8) ------ High-capacity Storage Unit Matter Compressor Advanced Salvage Targeting Computer > --- WEAPON (2) ------- Great Maul Great Maul > --- INVENTORY (20) --- Large Storage Unit Improved Transmission Jammer Hacking Suite Flak Gun Coil Gun Coil Gun Coil Gun Coil Gun Improved Heavy Machine Gun Hypervelocity Coil Gun Mini Assault Cannon Improved Datajack Axe Peak State ------------ > --- POWER ------------ Improved Deuterium Engine > --- PROPULSION ------- Light Treads Armored Medium Treads Flexi-carbon Leg Armored Wheel Antigrav System Gyrokinetic Inverter > --- UTILITY ---------- Improved Heat Sink Experimental Heat Sink High-capacity Storage Unit Matter Compressor Advanced Salvage Targeting Computer Improved Light Armor Plating Improved Light Armor Plating Improved Light Armor Plating > --- WEAPON ----------- Mini Assault Cannon Heavy Flak Cannon > --- INVENTORY -------- Gyrokinetic Inverter Gyrokinetic Inverter Large Storage Unit Improved Transmission Jammer Hacking Suite Flak Gun Coil Gun Coil Gun Coil Gun Coil Gun Improved Heavy Machine Gun Gauss Cannon Heavy Rocket Launcher Improved Datajack Field Lobotomy Kit Axe [Rating: 78] Favorites ----------- Power Deuterium Engine Engine Deuterium Engine Power Core Light Nuclear Core Reactor Light Antimatter Reactor Propulsion Light Treads Treads Light Treads Leg Flexi-carbon Leg Wheel Armored Wheel Hover Unit Gyrokinetic Inverter Flight Unit Cesium-ion Thruster Utility Large Storage Unit Device Improved Heat Sink Storage Large Storage Unit Processor Improved Targeting Computer Hackware Authchip [R/Combat] Protection Improved Light Armor Plating Weapon Magnetic Acceleration Cannon Energy Gun EM Pulse Gun Ballistic Gun Heavy Assault Rifle Ballistic Cannon Magnetic Acceleration Cannon Launcher Rocket Launcher Special Weapon Field Lobotomy Kit Impact Weapon Great Maul Slashing Weapon Axe Piercing Weapon Spear Build | -11 -10 -10 -9 -9 -9 -8 -8 -8 -8 -8 -7 -7 -7 -7 -7 -7 -6 -6 -5 ------- Run | Scr Mat Min Mat Min Exi Min Mat Gar Mat Gar Fac Gar Fac Gar Fac Gar Fac Ext Fac Slots Evolved 10 | . . . 2 . . . 2 . . . 2 . . . . . 2 . 2 Power . | . . . . . . . . . . . . . . . . . . . . Propulsion 4 | . . . . . . . 1 . . . 1 . . . . . 1 . 1 Utility 6 | . . . 2 . . . 1 . . . 1 . . . . . 1 . 1 Weapon . | . . . . . . . . . . . . . . . . . . . . Parts Attached 236 | 7 3 3 32 6 1 . 29 18 1 8 9 25 10 25 5 7 14 6 27 Power 22 | 1 . . 6 . . . 1 1 . 1 1 3 . 2 . 1 1 1 3 Engine 16 | 1 . . 6 . . . 1 1 . . 1 3 . 1 . . . 1 1 Core 5 | . . . . . . . . . . 1 . . . 1 . 1 1 . 1 Reactor 1 | . . . . . . . . . . . . . . . . . . . 1 Propulsion 59 | 3 . . 7 1 . . 11 5 1 4 4 4 1 4 4 2 2 . 6 Treads 29 | 2 . . 6 1 . . 6 4 1 4 2 . . . . 1 . . 2 Leg 6 | . . . 1 . . . 3 1 . . . . . . . . 1 . . Wheel 16 | 1 . . . . . . 2 . . . 2 4 1 4 1 . 1 . . Hover 7 | . . . . . . . . . . . . . . . 3 . . . 4 Flight 1 | . . . . . . . . . . . . . . . . 1 . . . Utility 74 | 1 3 1 6 . 1 . 11 4 . 2 2 10 6 6 1 4 6 3 7 Device 22 | . . 1 3 . . . 2 1 . . . 5 2 2 . 2 2 . 2 Storage 6 | 1 2 . . . 1 . . . . . . . . . . . 2 . . Processor 4 | . . . 2 . . . . . . . . . . . 1 . . . 1 Hackware 1 | . . . . . . . . . . . . . 1 . . . . . . Protection 41 | . 1 . 1 . . . 9 3 . 2 2 5 3 4 . 2 2 3 4 Artifact . | . . . . . . . . . . . . . . . . . . . . Weapon 81 | 2 . 2 13 5 . . 6 8 . 1 2 8 3 13 . . 5 2 11 Energy Gun 14 | 2 . 1 10 1 . . . . . . . . . . . . . . . Energy Cannon . | . . . . . . . . . . . . . . . . . . . . Ballistic Gun 19 | . . . 2 2 . . 4 2 . . . 3 2 3 . . . . 1 Ballistic Cannon 26 | . . . . . . . 2 3 . 1 1 3 1 5 . . 4 1 5 Launcher 8 | . . 1 1 2 . . . 1 . . . . . 2 . . . . 1 Special Weapon 5 | . . . . . . . . 1 . . . . . 1 . . . 1 2 Impact Weapon 2 | . . . . . . . . . . . . . . . . . . . 2 Slashing Weapon 4 | . . . . . . . . 1 . . . . . 2 . . 1 . . Piercing Weapon 3 | . . . . . . . . . . . 1 2 . . . . . . . Special Melee Weapon . | . . . . . . . . . . . . . . . . . . . . Unidentified Prototypes 3 | . . 1 1 . . . . . . . . . . . . . . . 1 Parts Lost 90 | . . . 14 1 . . 7 3 . 3 1 14 . 13 . 3 2 2 27 Power 10 | . . . 1 . . . . . . . . 2 . 2 . 1 1 1 2 Propulsion 30 | . . . 4 1 . . 2 2 . 1 1 2 . 6 . 2 . . 9 Utility 29 | . . . 2 . . . 2 1 . 2 . 5 . 4 . . 1 1 11 Weapon 21 | . . . 7 . . . 3 . . . . 5 . 1 . . . . 5 Highest Loss Streak 9 | . . . 9 1 . . 4 1 . 3 1 4 . 8 . 2 1 1 8 To Critical Strikes 1 | . . . . . . . . . . 1 . . . . . . . . . Average Slot Usage (%) 94 | . 98 100 94 99 100 100 99 98 100 99 96 84 99 84 82 79 89 92 83 Engine 6 | . 14 14 10 11 11 11 9 9 9 3 6 6 7 4 7 1 . 1 1 Core 1 | . . . . . . . . . . 5 . . . 1 . 1 5 4 1 Treads 13 | . 28 28 20 21 22 22 20 17 27 26 26 . . . . 4 6 6 8 Leg 2 | . . . . . . . 3 6 . . . . . . . . 4 6 3 Wheel 7 | . . . . . . . 3 1 . . 1 18 29 18 . 7 12 13 4 Device 8 | . . 10 14 11 11 11 4 9 9 9 7 8 15 8 7 7 11 6 4 Storage 9 | . 21 17 11 11 11 11 9 9 9 9 7 7 7 7 7 7 8 13 11 Processor 10 | . . . 13 22 22 22 14 9 9 9 7 7 7 7 10 15 10 6 5 Protection 13 | . 5 . 2 . . . 17 18 18 18 21 19 12 12 15 15 13 19 16 Energy Gun 2 | . 28 28 19 2 . . . . . . . . . . . . . . . Ballistic Gun 4 | . . . 1 16 22 22 9 2 . . . 3 7 2 . . . . . Ballistic Cannon 8 | . . . . . . . 8 14 18 18 15 9 7 9 5 . 7 12 9 Naked Turns . | . . . . . . . . . . . . . . . . . . . . Heaviest Build 90 | 14 33 33 35 36 33 33 55 62 62 63 71 71 58 55 48 40 78 80 90 Greatest Support 80 | 40 40 40 40 40 40 40 60 60 60 60 80 56 52 52 28 28 40 40 40 Greatest Overweight (x) 15 | 3 . . 6 1 . . 3 3 1 1 2 1 1 15 15 1 1 1 7 Average Overweight (x) . | . . . . . . . . 1 1 . . . . . 2 1 . 1 4 Largest Inventory Capacity 20 | 8 15 15 15 15 15 15 15 15 15 15 15 15 15 15 15 15 20 20 20 Average Capacity 15 | 7 12 15 15 15 15 15 15 15 15 15 15 15 15 15 15 15 16 20 20 Most Carried 20 | 7 15 15 15 15 15 15 15 15 15 15 15 15 15 15 14 15 16 18 20 Average Carried 14 | 3 11 14 14 14 14 14 14 14 14 14 14 13 14 12 10 14 15 16 15 Final Capacity 20 | 8 15 15 15 15 15 15 15 15 15 15 15 15 15 15 15 15 20 20 20 Final Carried 18 | 6 15 15 15 15 15 15 15 14 15 12 15 15 15 10 14 15 15 18 13 Class Distribution -------------------- 57% | Scavenger-Mutant 42% | Mutant Dominant Class ---------------- Mutant | -10/Materials Mutant | -10/Mines Mutant | -9/Materials Scavenger-Mutant | -9/Mines Scavenger-Mutant | -9/Exiles Scavenger-Mutant | -8/Mines Scavenger-Mutant | -8/Materials Mutant | -8/Garrison Mutant | -8/Materials Scavenger-Mutant | -8/Garrison Scavenger-Mutant | -7/Factory Mutant | -7/Garrison Scavenger-Mutant | -7/Factory Scavenger-Mutant | -7/Garrison Mutant | -7/Factory Scavenger-Mutant | -7/Garrison Scavenger-Mutant | -6/Factory Mutant | -6/Extension Scavenger-Mutant | -5/Factory Resources | -11 -10 -10 -9 -9 -9 -8 -8 -8 -8 -8 -7 -7 -7 -7 -7 -7 -6 -6 -5 ----------- Run | Scr Mat Min Mat Min Exi Min Mat Gar Mat Gar Fac Gar Fac Gar Fac Gar Fac Ext Fac Matter Collected 6434 | 191 80 15 380 161 8 13 794 893 166 466 46 827 299 677 . 388 78 709 243 Remotely . | . . . . . . . . . . . . . . . . . . . . Salvage Created 5051 | . 97 17 965 74 . . 727 331 230 331 107 584 168 744 . 126 8 128 414 Parts 260 | . 11 2 46 7 . . 33 22 6 21 4 29 5 44 . 5 . 5 20 Haulers Intercepted . | . . . . . . . . . . . . . . . . . . . . Recyclers Shooed 2 | . . . . . . . 2 . . . . . . . . . . . . Parts Field Recycled . | . . . . . . . . . . . . . . . . . . . . Retrieved Matter . | . . . . . . . . . . . . . . . . . . . . Parts Self-Destructed . | . . . . . . . . . . . . . . . . . . . . Prevented . | . . . . . . . . . . . . . . . . . . . . Kills | -11 -10 -10 -9 -9 -9 -8 -8 -8 -8 -8 -7 -7 -7 -7 -7 -7 -6 -6 -5 ------- Run | Scr Mat Min Mat Min Exi Min Mat Gar Mat Gar Fac Gar Fac Gar Fac Gar Fac Ext Fac Combat Hostiles Destroyed 158 | . 4 3 20 6 . . 20 10 6 17 4 17 5 27 . 3 2 3 11 Melee 12 | . . . . . . . . . . . . 4 . 5 . 3 . . . Guns 37 | . 4 . 17 1 . . 8 4 . . . . 2 1 . . . . . Cannons 81 | . . . . . . . 12 6 6 17 1 13 3 11 . . 2 3 7 AOE 27 | . . 3 2 5 . . . . . . 3 . . 10 . . . . 4 Classes Destroyed 13 | . 2 . 7 . . . 1 . . . . 1 1 1 . . . . . Worker 2 | . . . 1 . . . . . . . . . 1 . . . . . . Builder 5 | . . . 1 . . . 1 . . . . . . . . . . 2 1 Recycler 1 | . . . 1 . . . . . . . . . . . . . . . . Watcher 3 | . . . 1 . . . . . . . . . . 1 . . . . 1 Swarmer 35 | . 3 3 . 4 . . . 3 . 6 . 6 . 9 . 1 . . . Cutter 3 | . . . . . . . . . . . . 3 . . . . . . . Saboteur 2 | . . . . . . . . . . . . . . 2 . . . . . Grunt 70 | . 1 . 15 1 . . 13 4 5 7 3 5 4 9 . . . . 3 Brawler 5 | . . . 1 1 . . 1 . . . . . . 2 . . . . . Duelist 2 | . . . 1 . . . 1 . . . . . . . . . . . . Sentry 24 | . . . 3 . . . 2 2 1 3 1 2 . 2 . 2 . 3 3 Hunter 11 | . . . . . . . 3 1 . 1 . 1 . . . . 2 . 3 Programmer 6 | . . . . . . . . . . . . . 1 3 . . . . 2 Best Kill Streak 7 | . 3 3 6 4 . . 4 3 5 7 3 5 4 6 . 1 2 3 3 Combat Bots Only 7 | . 3 3 3 4 . . 3 3 5 7 3 5 3 6 . 1 2 1 3 Max Kills in Single Turn 4 | . 2 3 4 2 . . 1 2 1 1 3 1 2 3 . 1 1 2 3 Gunslinging 1 | . 1 . 1 . . . . . . . . . . . . . . . . Exploded 3 | . . 3 2 1 . . . . . . 3 . . 3 . . . . 2 Melee 1 | . . . . . . . . . . . . 1 . 1 . 1 . . . Uniques/NPCs Destroyed 1 | . . . . . . . . . . . . . . . . . . 1 . A7 (-6/Extension) Combat | -11 -10 -10 -9 -9 -9 -8 -8 -8 -8 -8 -7 -7 -7 -7 -7 -7 -6 -6 -5 -------- Run | Scr Mat Min Mat Min Exi Min Mat Gar Mat Gar Fac Gar Fac Gar Fac Gar Fac Ext Fac Damage Taken 17623 | . 52 34 1605 274 . . 1865 491 429 1516 170 2669 257 2332 49 480 941 231 4228 Core 2649 | . 20 . 222 124 . . 262 82 14 157 12 178 35 396 . 73 35 12 1027 Absorbed by Shields 165 | . . . . . . . . . . . . 71 . 24 . 60 . 10 . Redirected to Shielding 60 | . . . 7 . . . . 53 . . . . . . . . . . . Core Remaining (%) 50 | 100 . 92 . . . 13 . . . 6 . . . . . . . 94 . Volleys Fired 429 | . 5 1 72 6 . . 85 24 13 38 5 53 14 46 . . 9 17 41 Largest 2 | . 2 2 2 2 . . 2 2 2 2 2 2 2 2 . . 2 2 2 Hottest 110 | . 80 70 106 56 . . 83 106 106 106 106 110 76 106 . . 106 106 106 Shots Fired 808 | . 10 2 129 12 . 1 157 44 26 75 10 103 29 80 2 . 18 34 76 Gun 267 | . 10 1 127 6 . 1 67 14 . . . 12 15 13 . . . . 1 Cannon 514 | . . . . . . . 90 28 26 75 10 91 14 58 2 . 18 33 69 Launcher 22 | . . 1 2 6 . . . 1 . . . . . 8 . . . . 4 Special 5 | . . . . . . . . 1 . . . . . 1 . . . 1 2 Kinetic 647 | . . . 4 6 . 1 157 42 26 75 10 103 29 71 2 . 18 33 70 Thermal 65 | . . . 65 . . . . . . . . . . . . . . . . Explosive 22 | . . 1 2 6 . . . 1 . . . . . 8 . . . . 4 Electromagnetic 69 | . 10 1 58 . . . . . . . . . . . . . . . . Robot Hit Streak 32 | . 4 . 25 32 . . 11 10 7 17 8 12 15 9 3 . 9 12 7 Robot Miss Streak 17 | . 3 . 3 1 . . 2 4 2 2 . 4 6 17 11 . 4 8 7 Penetration Max 1 | . . . . . . . 1 1 . . . 1 . 1 . . . . . Secondary Targets 4 | . 2 . 1 . . . 1 . . . . . . . . . . . . Max Gunslinging Chain 1 | . 1 . 1 . . . 1 . . . . . . . . . . . . Shots Hit Robots 621 | . 6 . 102 8 . . 118 23 16 48 5 64 25 80 1 10 16 33 66 Core Hits 404 | . 5 2 46 6 . . 43 13 8 21 4 29 24 66 3 4 18 42 70 Critical Kills 3 | . . . . . . . . 1 . . . 2 . . . . . . . Critical Parts Destroyed 3 | . . . . . . . . . . . . 3 . . . . . . . Critical Strikes 22 | . . . 1 . . . 2 2 . 3 . 10 . 1 . 2 . . 1 Destroy 6 | . . . . . . . . 1 . . . 5 . . . . . . . Blast 11 | . . . . . . . 2 1 . 3 . 4 . . . . . . 1 Corrupt 1 | . . . 1 . . . . . . . . . . . . . . . . Sever 3 | . . . . . . . . . . . . . . 1 . 2 . . . Impale 1 | . . . . . . . . . . . . 1 . . . . . . . Melee Attacks 56 | . . . . . . . . 1 . . 2 24 . 16 . 11 2 . . Impact . | . . . . . . . . . . . . . . . . . . . . Slashing 30 | . . . . . . . . 1 . . . . . 16 . 11 2 . . Piercing 26 | . . . . . . . . . . . 2 24 . . . . . . . Sneak Attacks 2 | . . . . . . . . . . . . . . . . 2 . . . Combat Hostiles 1 | . . . . . . . . . . . . . . . . 1 . . . Follow-up Attacks . | . . . . . . . . . . . . . . . . . . . . Damage Inflicted 17328 | . 73 144 1724 426 . . 2421 560 541 1467 941 1968 607 2715 54 424 324 859 2080 Guns 3133 | . 73 . 1343 43 . . 924 158 . . . 160 264 160 . . . . 8 Cannons 9067 | . . . . . . . 1493 402 541 1467 163 1418 343 899 54 . 324 859 1104 Explosions 3835 | . . 144 381 383 . . . . . . 778 . . 1189 . . . . 960 Melee 1281 | . . . . . . . . . . . . 390 . 467 . 424 . . . Ramming 12 | . . . . . . . 4 . . . . . . . . . . . 8 Kinetic 10846 | . . . 62 43 . . 2417 560 541 1467 163 1578 607 1059 54 . 324 859 1112 Thermal 1595 | . . . 737 . . . . . . . 778 . . . . . . . 80 Explosive 2618 | . . 144 381 383 . . . . . . . . . 1189 . . . . 521 Electromagnetic 976 | . 73 . 544 . . . . . . . . . . . . . . . 359 Impact . | . . . . . . . . . . . . . . . . . . . . Slashing 891 | . . . . . . . . . . . . . . 467 . 424 . . . Piercing 390 | . . . . . . . . . . . . 390 . . . . . . . Highest Corruption 9 | . . . 2 2 2 2 . . . . . . 1 9 9 9 . . 4 Average Corruption 3 | . . . 1 2 2 2 . . . . . . 1 3 9 9 . . 3 Corruption Purged . | . . . . . . . . . . . . . . . . . . . . Corruption Blocked . | . . . . . . . . . . . . . . . . . . . . Effects 88 | . . . 4 10 9 3 . . . . . . 2 21 8 13 . . 18 Message Errors 15 | . . . 1 . . 1 . . . . . . . 4 1 4 . . 4 Matter Fused 20 | . . . 1 2 1 . . . . . . . . 6 2 4 . . 4 Heat Flow Errors 16 | . . . . 3 3 1 . . . . . . 1 1 1 4 . . 2 Energy Discharges 8 | . . . . 2 2 . . . . . . . . 3 . . . . 1 Data Loss (minor) 10 | . . . 2 1 2 . . . . . . . . 3 . 1 . . 1 Data Loss (major) 6 | . . . . 1 1 . . . . . . . . 1 2 . . . 1 Misfires 8 | . . . . . . 1 . . . . . . 1 . 2 . . . 4 Alerts 3 | . . . . 1 . . . . . . . . . 1 . . . . 1 Weapon Failures 2 | . . . . . . . . . . . . . . 2 . . . . . Overload Shots . | . . . . . . . . . . . . . . . . . . . . Overflow Damage 532 | . . 8 11 31 . . 6 . . 41 253 37 5 25 . . . . 115 Projectiles 69 | . . . . . . . 6 . . 41 . 17 5 . . . . . . Explosions 419 | . . 8 11 31 . . . . . . 253 . . 1 . . . . 115 Melee 44 | . . . . . . . . . . . . 20 . 24 . . . . . Knockbacks 164 | . . . . . . . 26 5 1 14 . 11 7 34 3 . 10 28 25 Impact . | . . . . . . . . . . . . . . . . . . . . Kinetic 143 | . . . . . . . 21 5 1 14 . 11 6 33 3 . 10 20 19 Secondary 21 | . . . . . . . 5 . . . . . 1 1 . . . 8 6 Self-Inflicted Damage 671 | . . 22 . 185 . . . . . . . . . . . . . . 464 Shots 12 | . . 1 . 4 . . . . . . . . . . . . . . 7 Rammed 2 | . . . . . . . 1 . . . . . . . . . . . 1 Targets Rammed 2 | . . . . . . . 1 . . . . . . . . . . . 1 Kicked . | . . . . . . . . . . . . . . . . . . . . Crushed . | . . . . . . . . . . . . . . . . . . . . Highest Temperature 542 | . 54 9 315 243 232 238 542 153 207 430 90 315 201 246 149 262 . 135 325 Average Temperature 108 | . 26 6 97 100 113 238 166 60 75 161 46 92 72 28 87 106 . 51 123 Received Heat Transfer 4365 | . 6 . 669 12 . . 939 93 63 594 36 676 96 381 . 107 . 48 645 Effects 16 | . . . 2 . . . 9 . . 2 . 1 . . . 1 . . 1 Shutdowns 4 | . . . . . . . 2 . . 2 . . . . . . . . . Energy Bleed 4 | . . . 1 . . . 1 . . . . 1 . . . 1 . . . Interference 5 | . . . 1 . . . 4 . . . . . . . . . . . . Matter Decay 1 | . . . . . . . . . . . . . . . . . . . 1 Short Circuit 1 | . . . . . . . 1 . . . . . . . . . . . . Damage (minor) 1 | . . . . . . . 1 . . . . . . . . . . . . Siege Activations . | . . . . . . . . . . . . . . . . . . . . Robots Corrupted 1 | . . . 1 . . . . . . . . . . . . . . . . Combat Hostiles 1 | . . . 1 . . . . . . . . . . . . . . . . Parts Fried 5 | . . . 3 . . . . . . . . . . . . . . . 2 Impact Corruptions . | . . . . . . . . . . . . . . . . . . . . Robots Melted . | . . . . . . . . . . . . . . . . . . . . Combat Hostiles . | . . . . . . . . . . . . . . . . . . . . Parts Melted 2 | . . . 1 . . . . . 1 . . . . . . . . . . Heat Transferred 2396 | . . . 1846 . . . . . . . 450 . . . . . . . 100 Parts Sabotaged 4 | . . . . . . . . . . . . . . 4 . . . . . Parts Stolen . | . . . . . . . . . . . . . . . . . . . . Parts Stripped . | . . . . . . . . . . . . . . . . . . . . Power Chain Reactions 2 | . . . . . . . . . . . . . . . . . . . 2 Missiles Intercepted . | . . . . . . . . . . . . . . . . . . . . Alert | -11 -10 -10 -9 -9 -9 -8 -8 -8 -8 -8 -7 -7 -7 -7 -7 -7 -6 -6 -5 ------- Run | Scr Mat Min Mat Min Exi Min Mat Gar Mat Gar Fac Gar Fac Gar Fac Gar Fac Ext Fac Peak Influence 1251 | . 115 129 353 427 . . 366 1251 836 1023 710 781 425 1067 560 682 348 299 447 Initial 609 | . . 44 50 137 . . . 237 609 543 536 373 404 121 560 392 338 45 58 Average 384 | . 52 49 217 281 . . 113 647 708 728 593 613 288 739 560 490 245 155 92 Maximum Alert Level 4 | . . . 1 2 . . 1 4 3 3 3 3 2 3 2 2 1 1 2 Low Security (%) 31 | 100 100 100 35 . . 100 76 . . . . . 16 3 . . 46 73 85 Level 1 27 | . . . 64 71 . . 23 32 . . . 13 51 9 . 6 53 26 10 Level 2 24 | . . . . 27 . . . 18 42 60 98 44 31 35 100 93 . . 3 Level 3 15 | . . . . . . . . 38 57 39 1 41 . 51 . . . . . Level 4 1 | . . . . . . . . 9 . . . . . . . . . . . Level 5 . | . . . . . . . . . . . . . . . . . . . . High Security . | . . . . . . . . . . . . . . . . . . . . Max Security . | . . . . . . . . . . . . . . . . . . . . Squads Dispatched 23 | . 2 . 2 . . . 5 . 4 . . . 2 . . . 2 2 4 Investigation 7 | . 1 . 1 . . . 3 . . . . . . . . . 1 1 . Extermination 4 | . . . . . . . . . . . . . 1 . . . 1 . 2 Reinforcement 10 | . 1 . 1 . . . 2 . 2 . . . 1 . . . . 1 2 Assault . | . . . . . . . . . . . . . . . . . . . . Garrison 2 | . . . . . . . . . 2 . . . . . . . . . . Intercept . | . . . . . . . . . . . . . . . . . . . . Searches Triggered . | . . . . . . . . . . . . . . . . . . . . Construction Impeded 2 | . . . 1 . . . . . . . . . . . . . . 1 . Haulers Reinforced 1 | . . . . . . . . . . . . . . . . . . . 1 Active Scanning Responses . | . . . . . . . . . . . . . . . . . . . . Cargo Convoy Interrupts . | . . . . . . . . . . . . . . . . . . . . Stealth | -11 -10 -10 -9 -9 -9 -8 -8 -8 -8 -8 -7 -7 -7 -7 -7 -7 -6 -6 -5 --------- Run | Scr Mat Min Mat Min Exi Min Mat Gar Mat Gar Fac Gar Fac Gar Fac Gar Fac Ext Fac Distress Signals 13 | . 1 . 4 3 . . 2 . . . . . 1 . . . . . 2 Communications Jammed . | . . . . . . . . . . . . . . . . . . . . Distress Signals . | . . . . . . . . . . . . . . . . . . . . Times Spotted 271 | . 6 6 35 6 . . 41 17 8 22 5 23 13 35 . 12 4 15 23 Peak Tracking Total 8 | . 4 6 5 4 . . 4 4 5 5 4 6 3 8 . 5 2 6 8 Tactical Retreats 19 | . . . 1 1 . . 1 . . 1 1 8 1 2 . . 1 . 2 Traps | -11 -10 -10 -9 -9 -9 -8 -8 -8 -8 -8 -7 -7 -7 -7 -7 -7 -6 -6 -5 ------- Run | Scr Mat Min Mat Min Exi Min Mat Gar Mat Gar Fac Gar Fac Gar Fac Gar Fac Ext Fac Traps Triggered 39 | . 1 . 3 . . . 3 11 . 2 . 5 . 5 1 3 1 3 1 Indirectly . | . . . . . . . . . . . . . . . . . . . . Trap Hack Attempts . | . . . . . . . . . . . . . . . . . . . . Triggered . | . . . . . . . . . . . . . . . . . . . . Disarmed . | . . . . . . . . . . . . . . . . . . . . Reprogrammed . | . . . . . . . . . . . . . . . . . . . . Reused . | . . . . . . . . . . . . . . . . . . . . Traps Extracted . | . . . . . . . . . . . . . . . . . . . . Installed . | . . . . . . . . . . . . . . . . . . . . Triggered . | . . . . . . . . . . . . . . . . . . . . Machines | -11 -10 -10 -9 -9 -9 -8 -8 -8 -8 -8 -7 -7 -7 -7 -7 -7 -6 -6 -5 ---------- Run | Scr Mat Min Mat Min Exi Min Mat Gar Mat Gar Fac Gar Fac Gar Fac Gar Fac Ext Fac Machines Disabled 28 | . . . . 2 . . 3 1 1 3 3 1 . . . 1 . 1 12 Max in Single Turn 6 | . . . . 1 . . 1 1 1 1 3 1 . . . 1 . . 6 Garrison Relay 3 | . . . . . . . . 1 . 1 . . . . . 1 . . . Machines Sabotaged . | . . . . . . . . . . . . . . . . . . . . Garrisons Compromised . | . . . . . . . . . . . . . . . . . . . . Overloaded Fab Kills . | . . . . . . . . . . . . . . . . . . . . Hacking | -11 -10 -10 -9 -9 -9 -8 -8 -8 -8 -8 -7 -7 -7 -7 -7 -7 -6 -6 -5 --------- Run | Scr Mat Min Mat Min Exi Min Mat Gar Mat Gar Fac Gar Fac Gar Fac Gar Fac Ext Fac Machines Accessed 36 | . 1 . 4 . 1 . 4 3 1 1 2 . 5 2 3 . 3 6 . Terminals 27 | . 1 . 4 . . . 3 3 . 1 1 . 2 2 1 . 3 6 . Fabricators 2 | . . . . . . . . . . . . . 1 . 1 . . . . Repair Stations . | . . . . . . . . . . . . . . . . . . . . Recycling Units . | . . . . . . . . . . . . . . . . . . . . Scanalyzers 1 | . . . . . . . . . . . . . 1 . . . . . . Garrison Access 5 | . . . . . . . 1 . 1 . 1 . 1 . 1 . . . . Total Hacks 75 | . 3 . 7 . 1 . 18 4 1 3 4 . 9 4 5 . 4 12 . Successful 34 | . 1 . 4 . 1 . 4 2 1 1 3 . 3 2 4 . 3 5 . Failed 41 | . 2 . 3 . . . 14 2 . 2 1 . 6 2 1 . 1 7 . Catastrophic 8 | . . . 1 . . . 3 1 . . . . 1 . . . . 2 . Database Lockouts . | . . . . . . . . . . . . . . . . . . . . Manual 22 | . 1 . 4 . 1 . 10 . . . 2 . 3 1 . . . . . Terminals 60 | . 3 . 7 . . . 16 4 . 3 2 . 3 4 2 . 4 12 . Fabricators 4 | . . . . . . . . . . . . . 3 . 1 . . . . Repair Stations . | . . . . . . . . . . . . . . . . . . . . Recycling Units . | . . . . . . . . . . . . . . . . . . . . Scanalyzers 2 | . . . . . . . . . . . . . 2 . . . . . . Garrison Access 8 | . . . . . . . 2 . 1 . 2 . 1 . 2 . . . . Terminal Hacks 24 | . 1 . 4 . 1 . 3 2 . 1 . . 1 2 1 . 3 5 . Robot Analysis 1 | . . . 1 . . . . . . . . . . . . . . . . Prototype ID Bank 5 | . 1 . 1 . . . 1 . . . . . . . 1 . 1 . . Open Door 8 | . . . . . . . . 1 . 1 . . . 1 . . 1 4 . Open DSF 2 | . . . . . . . . . . . . . 1 . . . 1 . . Branch Access Points 1 | . . . 1 . . . . . . . . . . . . . . . . Emergency Access Points 2 | . . . . . . . . 1 . . . . . 1 . . . . . Alert Level 2 | . . . . . . . 2 . . . . . . . . . . . . Hauler Manifests 1 | . . . . . . . . . . . . . . . . . . 1 . Registered Components 1 | . . . 1 . . . . . . . . . . . . . . . . EX-Prototype ID Bank 1 | . . . . . 1 . . . . . . . . . . . . . . Fabricator Hacks 2 | . . . . . . . . . . . . . 1 . 1 . . . . Network Status 1 | . . . . . . . . . . . . . 1 . . . . . . Build 1 | . . . . . . . . . . . . . . . 1 . . . . Repair Station Hacks . | . . . . . . . . . . . . . . . . . . . . Recycling Unit Hacks . | . . . . . . . . . . . . . . . . . . . . Scanalyzer . | . . . . . . . . . . . . . . . . . . . . Garrison Access Hacks 7 | . . . . . . . 1 . 1 . 2 . 1 . 2 . . . . Unlock Access 5 | . . . . . . . 1 . 1 . 1 . 1 . 1 . . . . Coupler Status 2 | . . . . . . . . . . . 1 . . . 1 . . . . Unauthorized Hacks 1 | . . . . . . . . . . . 1 . . . . . . . . Terminals 1 | . . . . . . . . . . . 1 . . . . . . . . Botnet 1 | . . . . . . . . . . . 1 . . . . . . . . Fabricators . | . . . . . . . . . . . . . . . . . . . . Repair Stations . | . . . . . . . . . . . . . . . . . . . . Recycling Units . | . . . . . . . . . . . . . . . . . . . . Scanalyzers . | . . . . . . . . . . . . . . . . . . . . Garrison Access . | . . . . . . . . . . . . . . . . . . . . Data Cores Recovered . | . . . . . . . . . . . . . . . . . . . . Used . | . . . . . . . . . . . . . . . . . . . . Hacking Detections 24 | . 1 . 3 . . . 4 3 . 1 1 . 5 1 . . 1 4 . Full Trace Events 3 | . . . . . . . 1 1 . . . . . . . . . 1 . Feedback Events . | . . . . . . . . . . . . . . . . . . . . Feedback Blocked . | . . . . . . . . . . . . . . . . . . . . Robot Schematics Acquired . | . . . . . . . . . . . . . . . . . . . . Robots Built 3 | . . . . . . . . . . . . . . . 3 . . . . Authchips 1 | . . . . . . . . . . . . . . . 1 . . . . Time 58 | . . . . . . . . . . . . . . . 58 . . . . Total Robot Build Rating 9 | . . . . . . . . . . . . . . . 9 . . . . Part Schematics Acquired . | . . . . . . . . . . . . . . . . . . . . Parts Built . | . . . . . . . . . . . . . . . . . . . . Authchips . | . . . . . . . . . . . . . . . . . . . . Time . | . . . . . . . . . . . . . . . . . . . . Total Part Build Rating . | . . . . . . . . . . . . . . . . . . . . Parts Repaired . | . . . . . . . . . . . . . . . . . . . . Time . | . . . . . . . . . . . . . . . . . . . . Parts Recycled . | . . . . . . . . . . . . . . . . . . . . Recycled Matter . | . . . . . . . . . . . . . . . . . . . . Retrieved Matter . | . . . . . . . . . . . . . . . . . . . . Retrieved Components . | . . . . . . . . . . . . . . . . . . . . Parts Scanalyzed . | . . . . . . . . . . . . . . . . . . . . Part Schematics Acquired . | . . . . . . . . . . . . . . . . . . . . Parts Damaged . | . . . . . . . . . . . . . . . . . . . . Bothacking | -11 -10 -10 -9 -9 -9 -8 -8 -8 -8 -8 -7 -7 -7 -7 -7 -7 -6 -6 -5 ------------ Run | Scr Mat Min Mat Min Exi Min Mat Gar Mat Gar Fac Gar Fac Gar Fac Gar Fac Ext Fac Used RIF Installer 2 | . . . . . . . . 1 . . . . . 1 . . . . . Structural Interface 1 | . . . . . . . . . . . . . . 1 . . . . . Robots Hacked . | . . . . . . . . . . . . . . . . . . . . Non-combat . | . . . . . . . . . . . . . . . . . . . . Combat . | . . . . . . . . . . . . . . . . . . . . Robot Hacks Applied . | . . . . . . . . . . . . . . . . . . . . Relay Couplers Released 18 | . . . . . . . . 5 . 5 . . . 3 . 5 . . . Machine Destruction 15 | . . . . . . . . 5 . 5 . . . . . 5 . . . Programmers 3 | . . . . . . . . . . . . . . 3 . . . . . Fabnet Peak Effective % . | . . . . . . . . . . . . . . . . . . . . Robots Rewired 3 | . . . . . . . . . . . . . . . . 3 . . . Allies Hacked . | . . . . . . . . . . . . . . . . . . . . Hacks Repelled . | . . . . . . . . . . . . . . . . . . . . Allies | -11 -10 -10 -9 -9 -9 -8 -8 -8 -8 -8 -7 -7 -7 -7 -7 -7 -6 -6 -5 -------- Run | Scr Mat Min Mat Min Exi Min Mat Gar Mat Gar Fac Gar Fac Gar Fac Gar Fac Ext Fac Total Allies 22 | . . 1 . 1 . . . 3 . 2 . . . 3 3 3 . 4 2 Largest Group 5 | . . 1 1 1 . . . 2 2 3 . . . 3 5 5 . 3 2 Highest-Rated Group 265 | . . 31 31 31 . . . 85 62 90 . . . 128 110 110 . 265 139 Highest-Rated Ally 159 | . . 31 31 31 . . . 85 31 39 . . . 85 31 31 . 159 85 Total Orders . | . . . . . . . . . . . . . . . . . . . . Ally Attacks 251 | . . . 24 2 . . . 14 26 16 . . . 36 . 61 . 52 20 Total Damage 6175 | . . . 171 40 . . . 665 443 380 . . . 761 . 1085 . 1845 785 Kills 50 | . . . 2 . . . . 12 2 2 . . . 9 . 12 . 7 4 Allies Corrupted 1 | . . . . . . . . . . . . . . 1 . . . . . Allies Melted . | . . . . . . . . . . . . . . . . . . . . Field Lobotomies 5 | . . . . . . . . 1 . . . . . 1 . . . 1 2 Intel | -11 -10 -10 -9 -9 -9 -8 -8 -8 -8 -8 -7 -7 -7 -7 -7 -7 -6 -6 -5 ------- Run | Scr Mat Min Mat Min Exi Min Mat Gar Mat Gar Fac Gar Fac Gar Fac Gar Fac Ext Fac Robot Analysis Total 1 | . . . 1 . . . . . . . . . . . . . . . . Derelict Logs Recovered 2 | . . . . 2 . . . . . . . . . . . . . . . Drone Launches . | . . . . . . . . . . . . . . . . . . . . Drone Recoveries . | . . . . . . . . . . . . . . . . . . . . Exploration | -11 -10 -10 -9 -9 -9 -8 -8 -8 -8 -8 -7 -7 -7 -7 -7 -7 -6 -6 -5 ------------- Run | Scr Mat Min Mat Min Exi Min Mat Gar Mat Gar Fac Gar Fac Gar Fac Gar Fac Ext Fac Turns Passed 15893 | 66 364 209 1067 738 621 120 2371 2310 160 861 553 766 1260 1337 253 441 855 464 1077 Spaces Moved 8455 | 40 176 124 430 434 387 75 1064 851 49 301 312 412 968 837 110 321 734 308 522 Core 45 | 5 . . 3 . . . . . . . . . . 29 8 . . . . Treads 3795 | 16 176 124 427 434 387 75 720 809 49 301 277 . . . . . . . . Legs 28 | . . . . . . . . 28 . . . . . . . . . . . Wheels 4413 | 19 . . . . . . 344 14 . . 35 412 968 808 19 321 734 308 431 Hover 174 | . . . . . . . . . . . . . . . 83 . . . 91 Flight . | . . . . . . . . . . . . . . . . . . . . Fastest Speed 50 | 50 160 160 160 160 160 160 105 135 243 163 115 93 90 93 112 115 95 110 102 Average Speed 151 | 124 160 160 167 160 160 160 158 248 243 241 158 108 100 120 198 115 105 110 162 Slowest Speed 800 | 200 160 160 350 240 160 160 245 400 243 243 240 115 105 800 800 115 115 110 270 Overloaded Moves . | . . . . . . . . . . . . . . . . . . . . Propulsion Burnouts . | . . . . . . . . . . . . . . . . . . . . Robots Hopped . | . . . . . . . . . . . . . . . . . . . . Cave-ins Triggered . | . . . . . . . . . . . . . . . . . . . . Exploration Rate (%) 38 | 3 37 33 52 66 77 36 69 63 10 35 10 43 27 75 4 41 18 49 23 Regions Visited 19 Branch Regions 5 Pre-discovered Areas 1 | . . . 1 . . . . . . . . . . . . . . . . Known Exits Taken 9 | . . . 1 1 1 1 1 . 1 . 1 . 1 . 1 . . . . Unknown Exits Taken 5 | 1 1 1 . . . . . . . . . . . . . . 1 1 . Scrap Searched 4 | . . . . 2 . 2 . . . . . . . . . . . . . Spaces Dug 19 | . . . . . . . . . . . 2 . . 15 . . 2 . . Terrain Destroyed 261 | . . 5 21 56 . . 9 2 6 1 19 7 . 98 . . 2 . 35 Melee 4 | . . . . . . . . . . . 2 . . . . . 2 . . Projectile 28 | . . . . . . . 9 2 6 1 3 7 . . . . . . . AOE 229 | . . 5 21 56 . . . . . . 14 . . 98 . . . . 35 Terrain Rammed . | . . . . . . . . . . . . . . . . . . . . Walls Destroyed . | . . . . . . . . . . . . . . . . . . . . Machines Disabled . | . . . . . . . . . . . . . . . . . . . . Actions | -11 -10 -10 -9 -9 -9 -8 -8 -8 -8 -8 -7 -7 -7 -7 -7 -7 -6 -6 -5 --------- Run | Scr Mat Min Mat Min Exi Min Mat Gar Mat Gar Fac Gar Fac Gar Fac Gar Fac Ext Fac Total 10685 | 54 251 132 646 471 390 76 1605 1010 63 365 363 588 1238 1056 143 375 788 395 676 Wait 1109 | . 52 3 92 11 . . 375 64 . 8 14 20 211 92 24 11 21 39 72 Move 8437 | 39 175 123 429 433 386 74 1063 849 49 299 311 411 968 836 110 320 733 307 522 Hop . | . . . . . . . . . . . . . . . . . . . . Pick Up 139 | 8 11 1 9 7 1 1 23 15 . 2 11 14 13 5 2 2 3 2 9 Fast Attach 72 | 4 2 . 8 1 . . 9 7 . 1 2 6 3 7 5 3 4 1 9 Attach 73 | 2 . . 13 . . . 6 3 . 4 4 13 1 8 . . 3 1 15 Detach 14 | . 1 . 3 . . . . 1 . . 1 1 1 . 2 . 2 . 2 Swap 92 | 1 1 3 12 5 1 . 14 8 1 3 3 6 6 10 . 4 7 4 3 Drop 132 | . 4 1 8 8 2 1 29 21 . 6 10 6 21 4 . 5 4 . 2 Fire 429 | . 5 1 72 6 . . 85 24 13 38 5 53 14 46 . . 9 17 41 Melee 56 | . . . . . . . . 1 . . 2 24 . 16 . 11 2 . . Ram 1 | . . . . . . . . . . . . . . . . . . . 1 Kick . | . . . . . . . . . . . . . . . . . . . . Crush 1 | . . . . . . . 1 . . . . . . . . . . . . Escape Stasis 118 | . . . . . . . . 16 . 4 . 34 . 32 . 8 . 24 . Rewire 12 | . . . . . . . . 1 . . . . . . . 11 . . . Trap . | . . . . . . . . . . . . . . . . . . . . Miscellaneous . | . . . . . . . . . . . . . . . . . . . . Route ------- -11/Scrapyard -10/Materials -10/Mines (discovered 2 exits: *Mat x2) -9/Materials (discovered 2 exits: *Mat / *Min) -9/Mines (discovered 2 exits: *Mat / *Exi) -9/Exiles (discovered 2 exits: *Min x2) -8/Mines -8/Materials (discovered 3 exits: *Fac / *Sto / Gar) -8/Garrison (discovered 3 exits: *Mat x3) -8/Materials -8/Garrison -7/Factory -7/Garrison -7/Factory (discovered 3 exits: *Fac / [*Low] / Gar) -7/Garrison (discovered 3 exits: *Fac x3) -7/Factory -7/Garrison -6/Factory -6/Extension -5/Factory History --------- Turn | Location | Event 29 | -11/Scrapyard | Discovered new exit (range 14) 67 | -11/Scrapyard | Entered Materials 300 | -10/Materials | Build established: Mutant 413 | -10/Materials | Discovered new exit (range 12) 431 | -10/Materials | Entered Mines 478 | -10/Mines | Found a damaged Exp. Sensor Array with a note attached 482 | -10/Mines | Found Prototype Device 483 | -10/Mines | Identified Exp. Sensor Array 605 | -10/Mines | Discovered new exit (range 14) 623 | -10/Mines | Discovered new exit (range 7) 628 | -10/Mines | Escorted by a lone wolf Derelict 640 | -10/Mines | Entered Materials 640 | -9/Materials | Accompanied by 1 ally 640 | -9/Materials | Evolved 2 slots: Utility x2 648 | -9/Materials | Learned location of Storage (-8) 983 | -9/Materials | Discovered new exit (range 5) 1002 | -9/Materials | Identified exit to Materials 1404 | -9/Materials | Lost 9 parts (1p4n2u2w) 1576 | -9/Materials | Core integrity fell below 50% 1656 | -9/Materials | Identified exit to Mines 1686 | -9/Materials | Build established: Scavenger-Mutant 1707 | -9/Materials | Entered Mines 1718 | -9/Mines | Received a Mining Laser from a helpful Derelict 1732 | -9/Mines | Assembled infested the area 1737 | -9/Mines | Assisted by a Guerilla fighting off Assembled 1752 | -9/Mines | Learned Materials terminal intel 1900 | -9/Mines | Core integrity fell below 20% 1973 | -9/Mines | Discovered exit to Materials (range 16) 2157 | -9/Mines | Received a Rocket Launcher from a helpful Derelict 2439 | -9/Mines | Deemed a non-threat by the Exiles lab entrance 2439 | -9/Mines | Discovered new exit (range 5) 2444 | -9/Mines | Identified exit to Exiles 2445 | -9/Mines | Entered Exiles 2466 | -9/Exiles | Discovered new exit (range 15) 2485 | -9/Exiles | Met 8R-AWN 2521 | -9/Exiles | Met EX-HEX 2604 | -9/Exiles | Met EX-BIN 2628 | -9/Exiles | Aligned with FarCom system 2629 | -9/Exiles | Given EX-Vault access code 2666 | -9/Exiles | Opened EX-Vault 2680 | -9/Exiles | Found Field Lobotomy Kit 2716 | -9/Exiles | Warned to stay clear of 0b10 Research branches 2823 | -9/Exiles | Met EX-DEC 2854 | -9/Exiles | Visited The Gauntlet 3052 | -9/Exiles | Discovered new exit (range 10) 3064 | -9/Exiles | Identified exit to Mines 3066 | -9/Exiles | Left Exiles lab with Field Lobotomy Kit 3066 | -9/Exiles | Entered Mines 3167 | -8/Mines | Discovered exit to Materials (range 7) 3186 | -8/Mines | Entered Materials 3186 | -8/Materials | Evolved 2 slots: Propulsion x1, Utility x1 3187 | -8/Materials | Identified exit to Storage 3188 | -8/Materials | Loaded intel: 12 terminal locations 5309 | -8/Materials | Build established: Mutant 5375 | -8/Materials | Discovered new exit (range 3) 5478 | -8/Materials | Lost 4 parts (2n1u1w) 5554 | -8/Materials | Identified exit to Garrison 5557 | -8/Materials | Entered Garrison 5754 | -8/Garrison | Triggered checkpoint 5754 | -8/Garrison | Triggered checkpoint 5756 | -8/Garrison | Core integrity fell below 50% 5892 | -8/Garrison | Spotted B-75 Beast 5895 | -8/Garrison | Assimilated B-75 Beast with FLK Orb 6183 | -8/Garrison | Discovered new exit (range 8) 6312 | -8/Garrison | Triggered checkpoint 6411 | -8/Garrison | Discovered new exit (range 15) 6514 | -8/Garrison | Triggered checkpoint 6557 | -8/Garrison | Garrison Relay disabled 6658 | -8/Garrison | Installed Relay Interface Framework 6844 | -8/Garrison | Triggered checkpoint 6937 | -8/Garrison | Discovered new exit (range 15) 7024 | -8/Garrison | Triggered checkpoint 7492 | -8/Garrison | Triggered checkpoint 7562 | -8/Garrison | Rescued a captive Derelict 7563 | -8/Garrison | Rescued a captive Derelict 7867 | -8/Garrison | Entered Materials 7867 | -8/Materials | Accompanied by 2 allies 7909 | -8/Materials | Garrison activated, responded to threat 8027 | -8/Materials | Identified exit to Garrison 8027 | -8/Materials | Entered Garrison 8027 | -8/Garrison | Accompanied by 1 ally 8138 | -8/Garrison | Triggered checkpoint 8284 | -8/Garrison | Triggered checkpoint 8325 | -8/Garrison | Rescued a captive Derelict 8325 | -8/Garrison | Rescued a captive Derelict 8444 | -8/Garrison | Garrison Relay disabled 8546 | -8/Garrison | Triggered checkpoint 8559 | -8/Garrison | Triggered checkpoint 8586 | -8/Garrison | Core integrity fell below 20% 8614 | -8/Garrison | Destroyed 7 combat bots 8680 | -8/Garrison | Build established: Scavenger-Mutant 8702 | -8/Garrison | Triggered checkpoint 8740 | -8/Garrison | Lost 3 parts (1n2u) 8788 | -8/Garrison | Triggered checkpoint 8796 | -8/Garrison | Spotted B-75 Beast 8799 | -8/Garrison | Spotted B-75 Beast 8852 | -8/Garrison | Discovered new exit (range 15) 8888 | -8/Garrison | Entered Factory 8888 | -7/Factory | Evolved 2 slots: Propulsion x1, Utility x1 9440 | -7/Factory | Identified exit to Garrison 9441 | -7/Factory | Entered Garrison 9520 | -7/Garrison | Triggered checkpoint 9650 | -7/Garrison | Triggered checkpoint 9689 | -7/Garrison | Triggered checkpoint 9690 | -7/Garrison | Build established: Mutant 9737 | -7/Garrison | Triggered checkpoint 9786 | -7/Garrison | Lost 4 parts (1p3u) 9853 | -7/Garrison | Lost 3 parts (1p1n1w) 10007 | -7/Garrison | Discovered new exit (range 14) 10080 | -7/Garrison | Triggered checkpoint 10135 | -7/Garrison | Lost 3 parts (1n1u1w) 10159 | -7/Garrison | Build established: Scavenger-Mutant 10207 | -7/Garrison | Entered Factory 10649 | -7/Factory | Discovered new exit (range 14) 10676 | -7/Factory | Discovered new exit (range 12) 11467 | -7/Factory | Identified exit to Garrison 11467 | -7/Factory | Entered Garrison 11498 | -7/Garrison | Triggered checkpoint 11559 | -7/Garrison | Expanded RIF knowledge: Structural Interface 11641 | -7/Garrison | Spotted B-75 Beast 11645 | -7/Garrison | Assimilated B-75 Beast with FLK Orb 11722 | -7/Garrison | Triggered checkpoint 11755 | -7/Garrison | Discovered new exit (range 8) 11788 | -7/Garrison | Triggered checkpoint 11955 | -7/Garrison | Discovered new exit (range 13) 12032 | -7/Garrison | Triggered checkpoint 12070 | -7/Garrison | Triggered checkpoint 12106 | -7/Garrison | Triggered checkpoint 12113 | -7/Garrison | Triggered checkpoint 12236 | -7/Garrison | Discovered new exit (range 10) 12308 | -7/Garrison | Triggered checkpoint 12407 | -7/Garrison | Core integrity fell below 50% 12491 | -7/Garrison | Lost 8 parts (1p2n4u1w) 12568 | -7/Garrison | Core integrity fell below 20% 12621 | -7/Garrison | Rescued a captive Derelict 12631 | -7/Garrison | Rescued a captive Derelict 12677 | -7/Garrison | Build established: Mutant 12804 | -7/Garrison | Entered Factory 12804 | -7/Factory | Accompanied by 2 allies 12993 | -7/Factory | Fabricated G-47 Trooper (x3) 13057 | -7/Factory | Identified exit to Garrison 13057 | -7/Factory | Entered Garrison 13057 | -7/Garrison | Accompanied by 5 allies 13075 | -7/Garrison | Garrison Relay disabled 13078 | -7/Garrison | Triggered checkpoint 13124 | -7/Garrison | Triggered checkpoint 13400 | -7/Garrison | Triggered checkpoint 13440 | -7/Garrison | Triggered checkpoint 13486 | -7/Garrison | Build established: Scavenger-Mutant 13494 | -7/Garrison | Discovered new exit (range 4) 13498 | -7/Garrison | Entered Factory 13498 | -6/Factory | Evolved 2 slots: Propulsion x1, Utility x1 14349 | -6/Factory | Discovered new exit (range 6) 14353 | -6/Factory | Entered Extension 14420 | -6/Extension | Rescued A7 14606 | -6/Extension | Rescued a captive Derelict 14636 | -6/Extension | Rescued a captive Derelict 14669 | -6/Extension | Spotted B-75 Beast 14674 | -6/Extension | Spotted B-75 Beast 14676 | -6/Extension | Assimilated B-75 Beast with FLK Orb 14707 | -6/Extension | Build established: Mutant 14738 | -6/Extension | Discovered new exit (range 3) 14778 | -6/Extension | Disrupted transfer network 14781 | -6/Extension | Destroyed A7 14785 | -6/Extension | Extracted ID and sensor layout for unrecognized location from A7's data core 14817 | -6/Extension | Entered Factory 14817 | -5/Factory | Evolved 2 slots: Propulsion x1, Utility x1 14958 | -5/Factory | Lost 5 parts (2n2u1w) 15188 | -5/Factory | Lost 4 parts (1p2u1w) 15362 | -5/Factory | Build established: Scavenger-Mutant 15665 | -5/Factory | Lost 8 parts (3n4u1w) 15739 | -5/Factory | Lost 3 parts (1p1n1u) 15742 | -5/Factory | Core integrity fell below 50% 15744 | -5/Factory | Core integrity fell below 20% 15774 | -5/Factory | Lost 3 parts (1n1u1w) 15811 | -5/Factory | Spotted B-75 Beast 15813 | -5/Factory | Assimilated B-75 Beast with FLK Orb 15838 | -5/Factory | Assimilated P-70 Sage with FLK Orb 15894 | -5/Factory | Destroyed by H-71 Marshal with Heavy Mass Driver Last Messages --------------- 15849_ Sage 6a fails to hack G-50 Soldier. 15849_ P-70 Sage fails to hack Beast 6a. 15851_ Slammed into P-70 Sage. 15852_ G-50 Soldier destroyed. 15854_ Assembly Bed disabled. 15859_ P-70 Sage destroyed. 15861_ Acquired 5 matter. 15864_ Acquired 60 matter. 15868_ Sage 6a fails to hack W-25 Informer. 15869_ Destroyed Imp. Hover Unit. 15886_ Slug penetrates Assembly Bed. 15888_ Acquired Great Maul. 15890_ Beast 6a Imp. Medium Treads blasted off. 15891_ Acquired Great Maul. 15892_ ALERT: Hostile activity reported, dispatching reinforcements to area. 15892_ Gyrokinetic Inverter destroyed. 15892_ Critical hit (Blast). 15892_ Knocked back. 15893_ Acquired 10 matter. Map ----- +----------------------------------------------------+ | " "??????????????????????????????????????????????? | | " "?????#????????????????????????????????????????? | | " """" #????????????????????????????????????????? | | " """" #????????????????????????????????????????? | | " """" #????????????????????????????????????????? | | " """" #????????????????????????????????????????? | | #????????????????????????????????????????? | | ! ?????????????????????????????????????????? | | ???????????????????????????????????????????? | | ???????????###################???????????????? | | #+############?# #???????????????? | | #?# #???????????????? | | ^ #?# #???????????????? | | % %%^% #?# #???????????????? | | % * ^ #?# #???????????????? | | [%%^ ### #???????????????? | | #???????????????? | | #???????????????? | | #+#### ! % #???????????????? | | ??# """|="""" #???????????????? | | "" ??# ! [ "" BB ### "##?????????? | | "" ??# """"!"""" BB ????????? | | "" ??# """" """" p ????????? | | ?? ??# """" "" // ???H????? | | ?? ?# " F" """" """" // ????????? | | ??? ?# """" %@/ ????????? | | ?????# #######?????????? | | ?????# #???????????????? | | ?????########## ######### #???????????????? | | ??????????????# #???????? #???????????????? | | ???????????????##????????? #???????????????? | | ?????????????????????????? #???????????????? | | ?????????????????????????? #???????????????? | | ?????????????????????????? #???????????????? | | ?????????????????????????? #???????????????? | | ?????????????????????????? #???????????????? | | ??????????????????????????? #???????????????? | | ??????????????????????????? #???????????????? | | ??????????????????????????? ????????????????? | | ??????????????????????????? ???????????????????? | | ?????????????????????????????????????????????????? | | ?????????????????????????????????????????????????? | | ?????????????????????????????????????????????????? | | ?????????????????????????????????????????????????? | | ?????????????????????????????????????????????????? | | ?????????????????????????????????????????????????? | | ?????????????????????????????????????????????????? | | ?????????????????????????????????????????????????? | | ?????????????????????????????????????????????????? | | ?????????????????????????????????????????????????? | +----------------------------------------------------+ Best States ------------- Heat Dissipation 80 Energy Generation 21 Energy Capacity 500 Matter Stores 550 Matter Capacity 550 Sight Range 16 Robot Scan Range 20 Terrain Scan Density 10 Armor Coverage 750 Utility Shielding 33 Weapon Shielding 66 Evasion (%) 42 Targeting Accuracy 6 Melee Accuracy 5 Recoil Reduction 4 Kinecelleration 30 Salvage Targeting 3 Authchip Count 8 Item Schematics ----------------- None Robot Schematics ------------------ None Fabricated ------------ G-47 Trooper | x3 | -7/Factory | Preloaded, Authchip Alien Tech Used ----------------- None Achievements -------------- Collateral Damage Maybe Next Time I'll Detach My Launcher Challenges ------------ None Game ------ Seed HellfireTerrainChainsword Manual? 0 Play Time 02:05:46 Cumulative 54.0 hours Start 2022.09.02 @ 12:11:49 End 2022.09.03 @ 02:02:27 Sessions 3 Manual Loads 0 Difficulty Rogue Special Mode None Game No. 40 Rogue 40 Adventurer 0 Explorer 0 Win Type - Total 1 Types 1/0/0/0/0/0/0/0/0 Lore% 53 Gallery% 52 Achievement% 49 Wizard Run 0 Options --------- ASCII 0 Keyboard 1 Movement Vi Keybinds 0 Fullscreen 2 Font 24/Proggy Map View 76x50 Tactical HUD 1 Map Filters NONE Filters NONE Steam 1 RUN: 35c3aa01-4e54-4c5b-88fd-35c5123ed3a0